bitfinex/quotes_BTCUSD_20251226
["timestamp","ask_amount","ask_price","bid_price","bid_amount"]
[1766720889278,0.01132,88857.0,88852.0,0.01125467]
[1766720889481,0.01132,88857.0,88851.0,0.12649479]
[1766720889815,0.01132,88857.0,88853.0,0.11524]
[1766720890028,0.01132,88859.0,88853.0,0.11524]
[1766720890375,0.01125416,88856.0,88853.0,0.114141]
[1766720890807,0.01125403,88857.0,88853.0,0.114141]
[1766720891003,0.01125416,88856.0,88853.0,0.114141]
[1766720891206,0.02257378,88859.0,88853.0,0.114141]
[1766720891207,0.01132,88859.0,88853.0,0.114141]
[1766720892772,0.0562708,88857.0,88853.0,0.114141]
[1766720892978,0.01125416,88856.0,88853.0,0.114141]
[1766720894048,0.01125403,88857.0,88853.0,0.114141]
[1766720894189,0.01125416,88856.0,88853.0,0.114141]
[1766720894946,0.06752501,88856.0,88853.0,0.114141]
[1766720895654,0.0562719,88855.0,88853.0,0.11354802]
[1766720895997,0.06752501,88856.0,88853.0,0.11354802]
[1766720895998,0.01125416,88856.0,88853.0,0.11354802]
[1766720896795,0.06752541,88856.0,88853.0,0.11354802]
[1766720897600,0.05627203,88855.0,88843.0,0.01125581]
[1766720897779,0.01125454,88853.0,88842.0,0.11974]
[1766720897976,0.01125467,88852.0,88842.0,0.11974]
[1766720898184,0.01125555,88845.0,88842.0,0.11974]
[1766720898524,0.01125568,88844.0,88840.0,0.01128]
[1766720898817,0.01125568,88844.0,88835.0,0.11994]
[1766720898966,0.01125555,88845.0,88835.0,0.11994]
[1766720899168,0.01125568,88844.0,88835.0,0.11994]
[1766720899381,0.01125568,88844.0,88835.0,0.12004771]
[1766720899819,0.01125555,88845.0,88835.0,0.12004771]
[1766720899997,0.01128,88855.0,88848.0,0.11974]
[1766720900205,0.01125441,88854.0,88848.0,0.11974]
[1766720900423,0.01125429,88855.0,88848.0,0.11974]
[1766720900601,0.01125454,88853.0,88848.0,0.11974]
[1766720900821,0.01125441,88854.0,88848.0,0.11974]
[1766720901042,0.01125454,88853.0,88848.0,0.11974]
[1766720901219,0.01125467,88852.0,88848.0,0.11974]
[1766720901421,0.01125479,88851.0,88848.0,0.11974]
[1766720901628,0.01802705,88857.0,88851.0,0.000549]
[1766720901809,0.01125315,88864.0,88851.0,0.000549]
[1766720901990,0.01125289,88866.0,88857.0,0.00055]
[1766720902186,0.01125315,88864.0,88853.0,0.01125454]
[1766720902428,0.01125302,88865.0,88854.0,0.13099441]
[1766720902628,0.01125315,88864.0,88854.0,0.13099441]
[1766720902987,0.01125327,88863.0,88854.0,0.11974]
[1766720903652,0.01128,88865.0,88857.0,0.11974]
[1766720903823,0.01125289,88866.0,88857.0,0.11974]
[1766720904028,0.02253302,88865.0,88857.0,0.11974]
[1766720904611,0.01125315,88864.0,88857.0,0.11974]
[1766720905042,0.02253302,88865.0,88857.0,0.11974]
[1766720905251,0.01125315,88864.0,88857.0,0.11974]
[1766720905446,0.01128,88865.0,88857.0,0.11974]
[1766720905857,0.02253302,88865.0,88857.0,0.11974]
[1766720906016,0.01125315,88864.0,88857.0,0.11974]
[1766720906218,0.02253302,88865.0,88857.0,0.11974]
[1766720906417,0.01125315,88864.0,88857.0,0.11974]
[1766720906949,0.02253302,88865.0,88857.0,0.11974]
[1766720907766,0.01125315,88864.0,88857.0,0.11974]
[1766720908179,0.02253302,88865.0,88857.0,0.11974]
[1766720908604,0.01125315,88864.0,88857.0,0.11974]
[1766720909879,0.01128,88865.0,88857.0,0.11974]
[1766720910029,0.02253302,88865.0,88857.0,0.11974]
[1766720910224,0.01128,88865.0,88858.0,0.01125391]
[1766720910585,0.01128,88865.0,88856.0,0.11974]
[1766720910875,0.01128,88865.0,88858.0,0.11974]
[1766720911844,0.01125137,88878.0,88866.0,0.01125289]
[1766720912057,0.01125188,88874.0,88866.0,0.01132]
[1766720912267,0.01125302,88865.0,88860.0,0.0002]
[1766720912466,0.12640213,88872.0,88860.0,0.0002]
[1766720912667,0.01125226,88871.0,88860.0,0.0002]
[1766720912875,0.12640213,88872.0,88860.0,0.01145365]
[1766720913076,0.11515,88872.0,88860.0,0.06772155]
[1766720913272,0.11521466,88872.0,88861.0,0.01125353]
[1766720913641,0.11521466,88872.0,88860.0,0.06772155]
[1766720913642,4.66e-06,88872.0,88869.0,0.13099251]
[1766720913796,4.66e-06,88872.0,88869.0,0.119191]
[1766720914178,4.66e-06,88872.0,88864.0,0.01125315]
[1766720914581,4.66e-06,88872.0,88866.0,0.01125289]
[1766720914784,4.66e-06,88872.0,88866.0,0.06751731]
[1766720914985,4.66e-06,88872.0,88867.0,0.01125277]
[1766720915236,4.66e-06,88872.0,88868.0,0.01125264]
[1766720915766,4.66e-06,88872.0,88869.0,0.01125251]
[1766720915967,4.66e-06,88872.0,88868.0,0.01125264]
[1766720916227,4.66e-06,88872.0,88866.0,0.01125289]
[1766720917171,4.66e-06,88872.0,88869.0,0.01125251]
[1766720918153,4.66e-06,88872.0,88868.0,0.01125264]
[1766720918665,4.66e-06,88872.0,88866.0,0.11974]
[1766720918870,4.66e-06,88872.0,88866.0,0.13099289]
[1766720919075,0.01125353,88861.0,88847.0,0.045]
[1766720919359,0.01125365,88860.0,88849.0,0.11994]
[1766720919558,0.01125365,88860.0,88850.0,0.02257492]
[1766720919851,0.06752043,88862.0,88850.0,0.01125492]
[1766720919992,0.01125353,88861.0,88851.0,0.02257479]
[1766720920200,0.01125353,88861.0,88851.0,0.01132]
[1766720920609,0.06752043,88862.0,88851.0,0.02257479]
[1766720920811,0.01125365,88860.0,88852.0,0.01132]
[1766720921013,0.01125353,88861.0,88853.0,0.01132]
[1766720921295,0.01125365,88860.0,88854.0,0.01132]
[1766720921684,0.01125429,88855.0,88849.0,0.11994]
[1766720921860,0.01125429,88855.0,88842.0,0.05627956]
[1766720921861,0.01125454,88853.0,88848.0,0.01132]
[1766720922038,0.01125467,88852.0,88844.0,0.01132]
[1766720922379,0.01125403,88857.0,88852.0,0.000549]
[1766720922600,0.01125391,88858.0,88852.0,0.000549]
[1766720922729,0.01125391,88858.0,88848.0,0.01125517]
[1766720923178,0.01125378,88859.0,88849.0,0.01125505]
[1766720924071,0.01125378,88859.0,88848.0,0.13274517]
[1766720924384,0.0742952,88861.0,88848.0,0.13274517]
[1766720924882,0.05626921,88859.0,88848.0,0.12149]
[1766720925083,0.01125391,88858.0,88848.0,0.12149]
[1766720925285,0.01125403,88857.0,88848.0,0.12149]
[1766720925443,0.01125391,88858.0,88848.0,0.12149]
[1766720925649,0.01095214,88858.0,88848.0,0.12149]
[1766720925849,0.01095214,88858.0,88848.0,0.11097076]
[1766720926407,0.01125378,88859.0,88849.0,0.01132]
[1766720926568,0.01125391,88858.0,88849.0,0.01132]
[1766720927191,0.01125378,88859.0,88849.0,0.01132]
[1766720927588,0.07429789,88861.0,88849.0,0.01132]
[1766720927589,0.01802968,88861.0,88851.0,0.01125479]
[1766720927793,2.63e-06,88861.0,88857.0,0.12149]
[1766720927968,0.05626322,88868.0,88861.0,0.00054637]
[1766720928170,0.01125302,88865.0,88861.0,0.00054637]
[1766720928398,0.01125315,88864.0,88857.0,0.12149]
[1766720928744,0.01125315,88864.0,88856.0,0.01132]
[1766720928875,0.06771573,88869.0,88856.0,0.02257416]
[1766720929083,0.01125289,88866.0,88856.0,0.01132]
[1766720929281,0.01125277,88867.0,88856.0,0.01132]
[1766720929470,0.01125289,88866.0,88856.0,0.01132]
[1766720929665,0.01125315,88864.0,88856.0,0.01132]
[1766720930103,0.01125403,88857.0,88854.0,0.01132]
[1766720930337,0.01125403,88857.0,88841.0,0.17776983]
[1766720930338,0.01125441,88854.0,88846.0,0.01132]
[1766720930484,0.01802705,88861.0,88847.0,0.1327453]
[1766720930680,0.01802705,88861.0,88854.0,0.000549]
[1766720930882,0.02928058,88861.0,88854.0,0.000549]
[1766720931102,0.01125378,88859.0,88849.0,0.13274505]
[1766720931328,0.01125391,88858.0,88849.0,0.12149]
[1766720931533,0.01125403,88857.0,88849.0,0.12149]
[1766720931735,0.02928058,88861.0,88849.0,0.12149]
[1766720931943,0.01802705,88861.0,88851.0,0.05627359]
[1766720932147,0.02928058,88861.0,88851.0,0.01125479]
[1766720932312,0.02928058,88861.0,88850.0,0.01125492]
[1766720932512,0.01802705,88861.0,88850.0,0.01125492]
[1766720932703,0.01125365,88860.0,88849.0,0.13274505]
[1766720932906,0.01802705,88861.0,88849.0,0.12149]
[1766720933150,0.01802705,88861.0,88850.0,0.01125492]
[1766720933346,0.01125378,88859.0,88849.0,0.12149]
[1766720933548,0.01802705,88861.0,88850.0,0.01125492]
[1766720933912,0.01802705,88861.0,88851.0,0.01125479]
[1766720934333,0.01802705,88861.0,88853.0,0.01125454]
[1766720934807,0.01802705,88861.0,88852.0,0.01125467]
[1766720935013,0.01802705,88861.0,88853.0,0.01125454]
[1766720935218,0.01802705,88861.0,88852.0,0.01125467]
[1766720935508,0.01802705,88861.0,88853.0,0.01125454]
[1766720935681,0.01802705,88861.0,88852.0,0.13274467]
[1766720936083,0.01125327,88863.0,88853.0,0.01125454]
[1766720936692,0.06751717,88867.0,88855.0,0.12149]
[1766720936894,0.01125289,88866.0,88855.0,0.12149]
[1766720937097,0.01125264,88868.0,88855.0,0.13274429]
[1766720937310,0.01125264,88868.0,88858.0,0.01125391]
[1766720937477,0.01125264,88868.0,88857.0,0.13274403]
[1766720937693,0.01125277,88867.0,88857.0,0.13274403]
[1766720938095,0.0675167,88867.0,88857.0,0.12149]
[1766720938482,0.01125289,88866.0,88857.0,0.12149]
[1766720939280,0.01125277,88867.0,88857.0,0.13274403]
[1766720939502,0.01125289,88866.0,88857.0,0.12149]
[1766720940503,0.01125277,88867.0,88857.0,0.12149]
[1766720940885,0.01125289,88866.0,88857.0,0.12149]
[1766720941073,0.01802705,88861.0,88855.0,0.01132]
[1766720941712,0.01125289,88866.0,88855.0,0.01132]
[1766720941713,0.01125264,88868.0,88861.0,0.001099]
[1766720941911,0.01125315,88864.0,88861.0,0.012379]
[1766720942092,0.1233,88863.0,88858.0,0.01132]
[1766720942307,0.0112534,88862.0,88858.0,0.01132]
[1766720942852,0.13455327,88863.0,88858.0,0.01132]
[1766720943033,0.01125353,88861.0,88858.0,0.01132]
[1766720943207,0.1233,88863.0,88858.0,0.010221]
[1766720943577,0.1233,88863.0,88855.0,0.01125429]
[1766720943578,0.13455327,88863.0,88852.0,0.01125467]
[1766720943753,0.1233,88863.0,88857.0,0.01132]
[1766720944311,0.13455327,88863.0,88857.0,0.01132]
[1766720944647,0.0112534,88862.0,88857.0,0.01132]
[1766720944881,0.13455327,88863.0,88857.0,0.01132]
[1766720945258,0.1233,88863.0,88857.0,0.01132]
[1766720945616,0.13455327,88863.0,88857.0,0.01132]
[1766720946014,0.0112534,88862.0,88857.0,0.01132]
[1766720946460,0.13455327,88863.0,88857.0,0.01132]
[1766720946868,0.0112534,88862.0,88857.0,0.01132]
[1766720947118,0.0112534,88862.0,88849.0,0.06772997]
[1766720947119,0.01125429,88855.0,88849.0,0.0002]
[1766720947250,0.13455403,88857.0,88849.0,0.0002]
[1766720947455,0.01125416,88856.0,88849.0,0.0002]
[1766720947697,0.13455403,88857.0,88849.0,0.0002]
[1766720948189,0.1233,88857.0,88849.0,0.0002]
[1766720948348,0.122751,88857.0,88849.0,0.01145505]
[1766720948553,0.13455327,88863.0,88851.0,0.01125479]
[1766720948907,0.0112534,88862.0,88851.0,0.01125479]
[1766720949119,0.13455327,88863.0,88852.0,0.01125467]
[1766720949665,0.1233,88863.0,88853.0,0.01125454]
[1766720949996,0.1233,88863.0,88851.0,0.01132]
[1766720950361,0.01125353,88861.0,88851.0,0.02257479]
[1766720950576,0.0112534,88862.0,88851.0,0.02257479]
[1766720950909,0.01125353,88861.0,88851.0,0.01132]
[1766720951136,0.0112534,88862.0,88851.0,0.01132]
[1766720951137,0.06752102,88862.0,88851.0,0.01132]
[1766720951344,0.01125353,88861.0,88851.0,0.01132]
[1766720951567,0.01125391,88858.0,88851.0,0.01132]
[1766720951782,0.01125429,88855.0,88849.0,0.01152]
[1766720951926,0.01125429,88855.0,88849.0,0.0002]
[1766720952136,0.05627435,88851.0,88849.0,0.01148]
[1766720952316,0.01125467,88852.0,88849.0,0.01148]
[1766720952317,0.01125467,88852.0,88849.0,0.0002]
[1766720952523,0.05627446,88851.0,88849.0,1e-08]
[1766720954672,0.01125454,88853.0,88849.0,1e-08]
[1766720954835,0.01125429,88855.0,88849.0,1e-08]
[1766720955053,0.01125467,88852.0,88849.0,1e-08]
[1766720955249,0.01125429,88855.0,88849.0,1e-08]
[1766720955474,0.01125454,88853.0,88849.0,1e-08]
[1766720955986,0.01125467,88852.0,88849.0,1e-08]
[1766720956195,0.01125454,88853.0,88849.0,1e-08]
[1766720956498,0.06752852,88852.0,88849.0,1e-08]
[1766720957355,0.01125454,88853.0,88849.0,1e-08]
[1766720957512,0.01125441,88854.0,88852.0,0.00055]
[1766720957702,0.22506384,88864.0,88849.0,1e-08]
[1766720957703,0.13455403,88857.0,88849.0,1e-08]
[1766720957901,0.05627,88858.0,88849.0,1e-08]
[1766720958153,0.01125441,88854.0,88849.0,1e-08]
[1766720958301,0.0675251,88856.0,88849.0,1e-08]
[1766720958712,0.01125416,88856.0,88849.0,1e-08]
[1766720959095,0.06752464,88857.0,88849.0,1e-08]
[1766720959266,0.01125454,88853.0,88849.0,1e-08]
[1766720959465,0.01125441,88854.0,88849.0,1e-08]
[1766720959669,0.01125441,88854.0,88835.0,0.0002]
[1766720959670,0.01802705,88850.0,88835.0,0.0002]
[1766720959889,0.01802705,88850.0,88772.0,2.87247666]
[1766720959890,0.01125631,88839.0,88827.0,0.01125783]
[1766720960069,0.01802705,88850.0,88816.0,0.04504]
[1766720960070,0.01125745,88830.0,88818.0,0.01125897]
[1766720960270,0.01125745,88830.0,88825.0,0.0002]
[1766720960470,0.0112572,88832.0,88830.0,0.0002]
[1766720960836,0.06754249,88833.0,88825.0,0.0002]
[1766720960837,0.01125707,88833.0,88825.0,0.0002]
[1766720961112,0.01125707,88833.0,88825.0,0.00026466]
[1766720961308,0.13024669,88836.0,88825.0,0.00026466]
[1766720961486,0.13024669,88836.0,88833.0,0.0002]
[1766720961813,6.7e-07,88836.0,88826.0,0.4016003]
[1766720962325,0.01125644,88838.0,88830.0,0.4016003]
[1766720962488,0.0562842,88839.0,88830.0,0.4016003]
[1766720962688,0.01125657,88837.0,88830.0,0.4016003]
[1766720962885,0.06753895,88838.0,88827.0,0.4128803]
[1766720963094,0.01125644,88838.0,88827.0,0.4128803]
[1766720963288,0.01125657,88837.0,88827.0,0.4128803]
[1766720963712,0.01125669,88836.0,88827.0,0.4128803]
[1766720963936,2.1e-06,88839.0,88836.0,0.0002]
[1766720964207,0.01125841,88839.0,88828.0,0.01125771]
[1766720964417,0.01125841,88839.0,88827.0,0.4128803]
[1766720965230,2.1e-06,88839.0,88827.0,0.4128803]
[1766720965430,0.13024581,88843.0,88839.0,0.0001979]
[1766720965644,0.13024581,88843.0,88832.0,0.0112572]
[1766720965851,0.11899,88843.0,88833.0,0.41285737]
[1766720966214,0.0002,88845.0,88834.0,0.01125695]
[1766720966557,0.01125492,88850.0,88837.0,0.06753898]
[1766720966697,0.01125492,88850.0,88840.0,0.4016003]
[1766720966698,0.01125517,88848.0,88840.0,0.4016003]
[1766720967099,0.01125492,88850.0,88841.0,0.01128]
[1766720967315,0.01125517,88848.0,88841.0,0.01128]
[1766720967911,0.01125492,88850.0,88841.0,0.01128]
[1766720968109,0.01125555,88845.0,88841.0,0.01128]
[1766720968313,0.0112553,88847.0,88841.0,0.01128]
[1766720968840,0.01125505,88849.0,88841.0,0.01128]
[1766720969032,0.01125505,88849.0,88837.0,0.0002]
[1766720969033,0.000549,88841.0,88837.0,0.0002]
[1766720969234,0.000549,88841.0,88840.0,0.01128]
[1766720969420,0.01125555,88845.0,88838.0,0.01128]
[1766720969620,0.0112553,88847.0,88838.0,0.01128]
[1766720969839,0.01125555,88845.0,88838.0,0.01128]
[1766720970568,0.01125581,88843.0,88837.0,0.0002]
[1766720970724,0.01125581,88843.0,88837.0,0.01148]
[1766720971366,0.01125593,88842.0,88837.0,0.01148]
[1766720971508,0.01125581,88843.0,88837.0,0.01148]
[1766720971709,0.01125606,88841.0,88837.0,0.01148]
[1766720972123,0.01125593,88842.0,88837.0,0.01148]
[1766720972329,0.01125581,88843.0,88837.0,0.01148]
[1766720973263,0.01125555,88845.0,88837.0,0.01148]
[1766720973470,0.06753377,88845.0,88837.0,0.01148]
[1766720973616,0.01125581,88843.0,88837.0,0.01148]
[1766720974115,0.01125669,88836.0,88830.0,0.4016003]
[1766720974319,0.01125669,88836.0,88831.0,0.01128]
[1766720974320,0.01125695,88834.0,88831.0,0.01128]
[1766720974534,0.01125695,88834.0,88820.0,0.4016003]
[1766720974535,0.01125707,88833.0,88829.0,0.01128]
[1766720974735,0.13024657,88837.0,88829.0,0.01128]
[1766720975354,0.01125669,88836.0,88829.0,0.01128]
[1766720975630,0.13024657,88837.0,88829.0,0.01128]
[1766720975765,0.01125669,88836.0,88826.0,0.4016003]
[1766720975971,0.01125669,88836.0,88829.0,0.01128]
[1766720976387,0.01125682,88835.0,88829.0,0.01128]
[1766720976630,0.13024695,88834.0,88829.0,0.01128]
[1766720976766,0.11899,88834.0,88829.0,0.01128]
[1766720976967,0.01125644,88838.0,88829.0,0.01128]
[1766720977188,0.01125657,88837.0,88829.0,0.01128]
[1766720977981,0.000549,88829.0,88825.0,0.00026466]
[1766720978297,0.01125669,88836.0,88825.0,0.01152275]
[1766720978499,0.05628284,88838.0,88836.0,0.00055]
[1766720978680,0.01125669,88836.0,88826.0,0.01128]
[1766720978885,0.11899,88836.0,88826.0,0.01125796]
[1766720979204,0.05628054,88841.0,88828.0,0.01125771]
[1766720979205,0.01125619,88840.0,88828.0,0.01125771]
[1766720979358,0.01125619,88840.0,88830.0,0.4016003]
[1766720979562,0.13024593,88842.0,88830.0,0.41285775]
[1766720980169,0.11899,88840.0,88827.0,0.02257783]
[1766720980378,0.11899,88840.0,88830.0,0.4016003]
[1766720980379,0.11899,88836.0,88830.0,0.4016003]
[1766720980575,0.11899,88836.0,88829.0,0.01125758]
[1766720980779,0.11899,88836.0,88830.0,0.01125745]
[1766720981030,0.11899,88836.0,88829.0,0.01125758]
[1766720981424,0.11899,88836.0,88828.0,0.01125771]
[1766720982246,0.11899,88836.0,88829.0,0.01125758]
[1766720982449,0.11899,88836.0,88827.0,0.02257783]
[1766720983048,0.11899,88836.0,88828.0,0.01125771]
[1766720983469,0.01125619,88840.0,88829.0,0.01125758]
[1766720983672,0.01125568,88844.0,88831.0,0.01125733]
[1766720983878,0.01125593,88842.0,88830.0,0.4128803]
[1766720984068,0.01125593,88842.0,88830.0,0.42413775]
[1766720984634,0.11642,88840.0,88831.0,0.01125733]
[1766720984836,0.11642,88840.0,88830.0,0.4128803]
[1766720985242,0.11642,88840.0,88830.0,0.42413775]
[1766720985505,0.11642,88840.0,88830.0,0.4128803]
[1766720986309,0.01125669,88836.0,88830.0,0.4123313]
[1766720986511,0.01125644,88838.0,88829.0,0.01128]
[1766720986721,0.01125631,88839.0,88829.0,0.01128]
[1766720987479,0.12767619,88840.0,88829.0,0.01128]
[1766720987876,0.11642,88840.0,88830.0,0.01125745]
[1766720988292,0.12767619,88840.0,88829.0,0.02253758]
[1766720988779,0.11642,88840.0,88830.0,0.01125745]
[1766720988902,0.11642,88840.0,88830.0,0.4016003]
[1766720989102,0.01125631,88839.0,88830.0,0.4016003]
[1766720989302,0.01125644,88838.0,88830.0,0.4016003]
[1766720990092,0.17270142,88840.0,88830.0,0.4016003]
[1766720990093,0.11642,88840.0,88830.0,0.4016003]
[1766720990213,0.01125631,88839.0,88830.0,0.4016003]
[1766720990404,0.01125657,88837.0,88830.0,0.4016003]
[1766720990634,0.06753825,88839.0,88829.0,0.01128]
[1766720991132,0.01125631,88839.0,88829.0,0.01128]
[1766720991414,0.01125631,88839.0,88829.0,0.02253758]
[1766720991636,0.18395751,88840.0,88829.0,0.02253758]
[1766720991811,0.11642,88840.0,88830.0,0.4016003]
[1766720992624,0.11642,88840.0,88830.0,0.41285775]
[1766720992901,0.12767619,88840.0,88830.0,0.4128803]
[1766720993043,0.11642,88840.0,88830.0,0.42413775]
[1766720993240,0.00055,88830.0,88823.0,0.01125834]
[1766720993466,0.11642,88835.0,88826.0,0.01128]
[1766720993663,0.01125695,88834.0,88826.0,0.01128]
[1766720993867,0.11642,88835.0,88826.0,0.01128]
[1766720994066,0.01125669,88836.0,88827.0,0.01128]
[1766720994288,0.01125657,88837.0,88827.0,0.01128]
[1766720994900,0.01125657,88837.0,88827.0,0.4128803]
[1766720995276,0.0675383,88839.0,88827.0,0.42413813]
[1766720995445,0.01125644,88838.0,88827.0,0.42413813]
[1766720995648,0.01102398,88838.0,88827.0,0.42413813]
[1766720995843,0.0675383,88839.0,88827.0,0.42413813]
[1766720996048,0.01125631,88839.0,88827.0,0.42413813]
[1766720996397,0.01125644,88838.0,88828.0,0.01125771]
[1766720996604,0.01125631,88839.0,88827.0,0.41285813]
[1766720996764,0.01125644,88838.0,88828.0,0.01128]
[1766720997890,0.01125657,88837.0,88828.0,0.01128]
[1766720998063,0.01125631,88839.0,88828.0,0.01128]
[1766720998268,0.01125657,88837.0,88828.0,0.01128]
[1766720998882,0.01125644,88838.0,88828.0,0.01128]
[1766720999078,0.01125619,88840.0,88828.0,0.02253771]
[1766720999473,0.01125631,88839.0,88828.0,0.01128]
[1766720999673,0.01125669,88836.0,88829.0,0.01128]
[1766721000474,0.11642,88837.0,88829.0,0.01128]
[1766721000681,0.12767657,88837.0,88829.0,0.01128]
[1766721001782,0.11642,88837.0,88829.0,0.01128]
[1766721001986,0.11642,88837.0,88828.0,0.01128]
[1766721002117,0.01125682,88835.0,88828.0,0.01128]
[1766721002329,0.01125707,88833.0,88828.0,0.01128]
[1766721002525,0.01125695,88834.0,88828.0,0.01128]
[1766721002828,0.01125682,88835.0,88828.0,0.01128]
[1766721003615,0.06809662,88828.0,88825.0,0.00026466]
[1766721003970,0.00055,88828.0,88825.0,0.00026466]
[1766721004127,0.01125758,88829.0,88825.0,0.00026466]
[1766721004313,0.01125733,88831.0,88825.0,0.00026466]
[1766721004528,0.13444705,88832.0,88825.0,0.00026466]
[1766721004529,0.01125745,88830.0,88825.0,0.00026466]
[1766721004893,0.1839634,88832.0,88825.0,0.00026466]
[1766721004894,0.01125733,88831.0,88825.0,0.00026466]
[1766721005228,0.05628844,88829.0,88825.0,0.00026466]
[1766721005434,0.00025934,88825.0,88815.0,0.01128]
[1766721005748,7.265e-05,88825.0,88815.0,0.02273935]
[1766721005969,7.265e-05,88825.0,88817.0,0.0112591]
[1766721006130,2.65e-06,88825.0,88821.0,0.01125859]
[1766721006311,2.65e-06,88825.0,88822.0,0.01125847]
[1766721006755,2.65e-06,88825.0,88821.0,0.01125859]
[1766721006963,2.65e-06,88825.0,88822.0,0.01125847]
[1766721007448,2.65e-06,88825.0,88821.0,0.01125859]
[1766721007850,2.65e-06,88825.0,88820.0,0.01125872]
[1766721008202,2.65e-06,88825.0,88815.0,0.01148]
[1766721008529,0.11642265,88825.0,88815.0,0.02273935]
[1766721008880,0.01125821,88824.0,88815.0,0.01148]
[1766721009451,0.11642265,88825.0,88815.0,0.01148]
[1766721009651,0.01125821,88824.0,88815.0,0.01148]
[1766721010803,0.11642265,88825.0,88815.0,0.01148]
[1766721011015,0.01125821,88824.0,88815.0,0.01148]
[1766721011437,0.01125847,88822.0,88815.0,0.0002]
[1766721011564,0.05629947,88811.0,88800.0,0.40188026]
[1766721011762,0.01125973,88812.0,88800.0,0.40188026]
[1766721011961,0.11642,88817.0,88796.0,0.01126176]
[1766721011962,0.01802705,88804.0,88796.0,0.01126176]
[1766721012169,0.12767986,88811.0,88796.0,0.01128]
[1766721012170,0.06756585,88803.0,88796.0,0.01128]
[1766721012368,0.01126088,88803.0,88796.0,0.01128]
[1766721012800,0.01802705,88804.0,88796.0,0.01128]
[1766721013529,0.11642,88806.0,88804.0,0.000204]
[1766721014042,0.11587,88806.0,88800.0,0.01126126]
[1766721014836,0.01128,88811.0,88801.0,0.01126113]
[1766721015035,0.01128,88811.0,88799.0,0.01126138]
[1766721015241,0.01128,88811.0,88799.0,0.06756786]
[1766721015438,0.01128,88811.0,88803.0,0.01126088]
[1766721015632,0.01128,88811.0,88799.0,0.06756786]
[1766721015860,0.01128,88811.0,88802.0,0.011261]
[1766721016176,0.05629645,88816.0,88778.0,0.38295923]
[1766721016177,0.01125821,88824.0,88811.0,0.000204]
[1766721016318,0.02253821,88824.0,88811.0,0.01146386]
[1766721016518,0.02253821,88824.0,88812.0,0.01125973]
[1766721016793,0.01125834,88823.0,88811.0,0.01125986]
[1766721017172,4.48e-06,88824.0,88815.0,0.01125935]
[1766721017378,2.65e-06,88825.0,88822.0,0.01125847]
[1766721017619,2.65e-06,88825.0,88822.0,0.06755029]
[1766721018186,2.65e-06,88825.0,88822.0,0.01125847]
[1766721018564,0.01128,88831.0,88825.0,0.01125809]
[1766721018769,0.0002,88835.0,88829.0,0.01125758]
[1766721019071,0.01802705,88832.0,88828.0,0.01125771]
[1766721019287,0.01782305,88832.0,88829.0,0.01125758]
[1766721020240,0.12309,88840.0,88831.0,0.01125733]
[1766721020468,0.12309,88840.0,88832.0,0.0112572]
[1766721020685,0.12309,88840.0,88834.0,0.01125695]
[1766721020861,0.01128,88842.0,88837.0,0.01125657]
[1766721021090,0.01128,88842.0,88836.0,0.01125669]
[1766721021445,0.01128,88842.0,88837.0,0.01125657]
[1766721021865,0.01128,88842.0,88838.0,0.01125644]
[1766721022106,0.01128,88842.0,88837.0,0.01125657]
[1766721022308,0.01128,88842.0,88836.0,0.01125669]
[1766721022510,0.01128,88842.0,88837.0,0.01125657]
[1766721023491,0.01128,88842.0,88838.0,0.01125644]
[1766721023690,0.01128,88842.0,88837.0,0.01125657]
[1766721024025,0.12309,88854.0,88843.0,0.01125581]
[1766721024188,0.12309,88854.0,88844.0,0.01125568]
[1766721024388,0.12309,88854.0,88845.0,0.01125555]
[1766721024573,0.12309,88854.0,88844.0,0.01125568]
[1766721024905,0.02928159,88853.0,88842.0,0.01125593]
[1766721025111,0.01802705,88853.0,88843.0,0.01125581]
[1766721025636,0.00055,88843.0,88842.0,0.01125593]
[1766721026208,0.14111705,88853.0,88844.0,0.01125568]
[1766721026407,0.14111705,88853.0,88847.0,0.0112553]
[1766721026586,0.14111705,88853.0,88845.0,0.01125555]
[1766721026587,0.14111705,88853.0,88841.0,0.05627997]
[1766721026799,0.14111705,88853.0,88844.0,0.01125568]
[1766721026997,0.14111705,88853.0,88841.0,0.05627997]
[1766721027197,0.00055,88841.0,88840.0,0.41313645]
[1766721027416,0.13434454,88853.0,88840.0,0.01125619]
[1766721027611,0.13434454,88853.0,88838.0,0.06756178]
[1766721027612,0.00055,88840.0,88838.0,0.02253644]
[1766721027934,0.12309,88853.0,88839.0,0.02253631]
[1766721028136,0.01128,88855.0,88844.0,0.01125568]
[1766721028355,0.01128,88855.0,88845.0,0.01125555]
[1766721029104,0.01128,88855.0,88846.0,0.06753235]
[1766721029321,0.01128,88855.0,88848.0,0.01125517]
[1766721029510,0.01128,88855.0,88849.0,0.01125505]
[1766721029716,0.01128,88855.0,88848.0,0.01125517]
[1766721030318,0.01128,88855.0,88849.0,0.01125505]
[1766721030524,0.01128,88855.0,88847.0,0.0112553]
[1766721031053,0.12309,88854.0,88842.0,0.01125593]
[1766721031231,0.00055,88847.0,88840.0,0.01125619]
[1766721031755,0.12309,88851.0,88839.0,0.02253631]
[1766721031969,0.13434517,88848.0,88838.0,0.01128]
[1766721032177,0.01128,88855.0,88825.0,0.00010771]
[1766721032178,0.01125682,88835.0,88825.0,0.00010771]
[1766721032381,0.12309,88835.0,88825.0,0.00010771]
[1766721032534,0.12309,88835.0,88826.0,0.01128]
[1766721032872,0.01802705,88842.0,88832.0,0.0112572]
[1766721033072,0.12309,88840.0,88828.0,0.01125771]
[1766721033281,0.12309,88840.0,88827.0,0.01125783]
[1766721033282,0.12309,88840.0,88830.0,0.01125745]
[1766721033456,0.12309,88840.0,88829.0,0.05628792]
[1766721033457,0.12309,88840.0,88829.0,0.01125758]
[1766721033777,0.12309,88840.0,88830.0,0.01125745]
[1766721033928,0.13434619,88840.0,88829.0,0.01125758]
[1766721034128,0.12309,88840.0,88827.0,0.06754697]
[1766721034378,0.12309,88840.0,88831.0,0.06754395]
[1766721034577,0.01802705,88842.0,88832.0,0.06754284]
[1766721034738,0.20190208,88847.0,88832.0,0.06754284]
[1766721034739,0.01125543,88846.0,88832.0,0.06754284]
[1766721035166,0.01125543,88846.0,88835.0,0.01125682]
[1766721035366,0.20190208,88847.0,88836.0,0.0675398]
[1766721035367,0.01128,88847.0,88836.0,0.0675398]
[1766721035567,0.13434454,88853.0,88840.0,0.06753672]
[1766721035767,0.13434454,88853.0,88838.0,0.01125644]
[1766721035968,0.01125517,88848.0,88840.0,0.40188026]
[1766721036186,0.13434479,88851.0,88841.0,0.01125606]
[1766721036385,0.01125517,88848.0,88837.0,0.06753942]